fUST/lending_fUST_20241226
["ID","MTS","AMOUNT","RATE_DAILY","PERIOD"]
[346710792,1735228157406,-500.0,0.00016998,2]
[346710793,1735228157429,-500.0,0.00016998,2]
[346710794,1735228157453,-500.0,0.00016998,2]
[346710795,1735228157478,-500.0,0.00016998,2]
[346710796,1735228157504,-500.0,0.00016998,2]
[346710797,1735228157526,-500.0,0.00016998,2]
[346710798,1735228157547,-186.69334111,0.00016998,2]
[346710799,1735228157569,-500.0,0.00016998,2]
[346710800,1735228157590,-500.0,0.00016998,2]
[346710801,1735228157611,-500.0,0.00016998,2]
[346710802,1735228157633,-500.0,0.00016998,2]
[346710803,1735228157656,-500.0,0.00016998,2]
[346710804,1735228157678,-500.0,0.00016998,2]
[346710805,1735228157700,-500.0,0.00016998,2]
[346710806,1735228157722,-500.0,0.00016998,2]
[346710807,1735228157743,-449.60797731,0.00016998,2]
[346710808,1735228157764,-500.0,0.00016998,2]
[346710809,1735228157784,-500.0,0.00016998,2]
[346710810,1735228157805,-500.0,0.00016998,2]
[346710811,1735228157825,-500.0,0.00016998,2]
[346710812,1735228157846,-501.13413891,0.00016998,2]
[346710813,1735228157866,-500.0,0.00016998,2]
[346710814,1735228157896,-500.0,0.00016998,2]
[346710815,1735228157916,-416.72196705,0.00016998,2]
[346710816,1735228157943,-83.27803295,0.00016998,2]
[346710817,1735228157963,-500.0,0.00016998,2]
[346710818,1735228157985,-500.0,0.00016998,2]
[346710819,1735228158006,-500.0,0.00016998,2]
[346710820,1735228158026,-500.0,0.00016998,2]
[346710821,1735228158048,-500.0,0.00016998,2]
[346710822,1735228158069,-537.1010704,0.00016998,2]
[346710823,1735228158089,-500.0,0.00016998,2]
[346710824,1735228158112,-500.0,0.00016999,2]
[346710825,1735228158133,-500.0,0.00016999,2]
[346710826,1735228158157,-500.0,0.00016999,2]
[346710827,1735228158178,-500.0,0.00016999,2]
[346710828,1735228158202,-500.0,0.00016999,2]
[346710829,1735228158223,-511.29685854,0.00016999,2]
[346710830,1735228158244,-500.0,0.00016999,2]
[346710831,1735228158265,-500.0,0.00016999,2]
[346710832,1735228158288,-627.18290576,0.00016999,2]
[346710833,1735228158309,-500.0,0.00016999,2]
[346710834,1735228158333,-500.0,0.00016999,2]
[346710835,1735228158458,-569.96,0.00016999,2]
[346710836,1735228158479,-500.0,0.00016999,2]
[346710837,1735228158500,-500.0,0.00016999,2]
[346710838,1735228158522,-500.0,0.00016999,2]
[346710839,1735228158543,-500.0,0.00016999,2]
[346710840,1735228158564,-500.0,0.00016999,2]
[346710841,1735228158586,-500.0,0.00016999,2]
[346710842,1735228158607,-500.0,0.00016999,2]
[346710843,1735228158628,-500.0,0.00016999,2]
[346710844,1735228158651,-163.274,0.00016999,2]
[346710845,1735228158673,-500.0,0.00016999,2]
[346710846,1735228158694,-500.0,0.00016999,2]
[346710847,1735228158715,-500.0,0.00016999,2]
[346710848,1735228158736,-500.0,0.00016999,2]
[346710849,1735228158758,-500.0,0.00016999,2]
[346710850,1735228158779,-500.0,0.00016999,2]
[346710851,1735228158800,-500.0,0.00016999,2]
[346710852,1735228158823,-1448.57,0.00016999,2]
[346710853,1735228158844,-500.0,0.00016999,2]
[346710854,1735228158866,-1120.13,0.00016999,2]
[346710855,1735228158887,-500.0,0.00016999,2]
[346710856,1735228158909,-500.0,0.00016999,2]
[346710857,1735228158930,-500.0,0.00016999,2]
[346710858,1735228158957,-848.86,0.00016999,2]
[346710859,1735228158977,-500.0,0.00016999,2]
[346710860,1735228158999,-746.68,0.00016999,2]
[346710861,1735228159021,-500.0,0.00016999,2]
[346710862,1735228159043,-1637.1,0.00016999,2]
[346710863,1735228159064,-501.44519189,0.00016999,2]
[346710864,1735228159085,-500.87944196,0.00016999,2]
[346710865,1735228159110,-500.0,0.00016999,2]
[346710866,1735228159131,-500.0,0.00016999,2]
[346710867,1735228159156,-500.0,0.00016999,2]
[346710868,1735228159181,-500.0,0.00016999,2]
[346710869,1735228159203,-500.0,0.00016999,2]
[346710870,1735228159225,-500.0,0.00016999,2]
[346710871,1735228159246,-277.35666156,0.00016999,2]
[346710872,1735228159269,-942.32,0.00016999,2]
[346710873,1735228159290,-500.0,0.00016999,2]
[346710874,1735228159313,-500.0,0.00016999,2]
[346710875,1735228159339,-500.0,0.00016999,2]
[346710876,1735228159362,-1090.31,0.00016999,2]
[346710877,1735228159385,-500.0,0.00016999,2]
[346710878,1735228159409,-500.0,0.00016999,2]
[346710879,1735228159433,-1292.11,0.00016999,2]
[346710880,1735228159455,-500.0,0.00016999,2]
[346710881,1735228159478,-500.0,0.00016999,2]
[346710882,1735228159501,-500.0,0.00016999,2]
[346710883,1735228159527,-1033.31,0.00016999,2]
[346710884,1735228159554,-500.0,0.00016999,2]
[346710885,1735228159574,-500.0,0.00016999,2]
[346710886,1735228159595,-500.0,0.00016999,2]
[346710887,1735228159616,-500.0,0.00016999,2]
[346710888,1735228159645,-500.0,0.00016999,2]
[346710889,1735228159669,-500.0,0.00016999,2]
[346710890,1735228159692,-500.0,0.00016999,2]
[346710891,1735228159714,-500.0,0.00016999,2]
[346710892,1735228159735,-500.0,0.00016999,2]
[346710893,1735228159756,-500.0,0.00016999,2]
[346710894,1735228159778,-500.0,0.00016999,2]
[346710895,1735228159799,-500.0,0.00016999,2]
[346710896,1735228159820,-618.36,0.00016999,2]
[346710897,1735228159842,-500.0,0.00016999,2]
[346710898,1735228159864,-500.0,0.00016999,2]
[346710899,1735228159887,-500.0,0.00016999,2]
[346710900,1735228159910,-500.0,0.00016999,2]
[346710901,1735228159931,-500.0,0.00016999,2]
[346710902,1735228159954,-500.0,0.00016999,2]
[346710903,1735228159977,-5540.9,0.00016999,2]
[346710904,1735228159998,-500.0,0.00016999,2]
[346710905,1735228160020,-567.99,0.00016999,2]
[346710906,1735228160042,-504.40090576,0.00016999,2]
[346710907,1735228160063,-500.0,0.00016999,2]
[346710908,1735228160084,-500.0,0.00016999,2]
[346710909,1735228160106,-500.0,0.00016999,2]
[346710910,1735228160128,-500.0,0.00016999,2]
[346710911,1735228160155,-530.75,0.00016999,2]
[346710912,1735228160178,-7651.71,0.00016999,2]
[346710913,1735228160205,-2040.8,0.00016999,2]
[346710914,1735228160232,-7651.71,0.00016999,2]
[346710915,1735228160258,-7651.71,0.00016999,2]
[346710916,1735228160287,-500.0,0.00016999,2]
[346710917,1735228160314,-7651.71,0.00016999,2]
[346710918,1735228160347,-7651.71,0.00016999,2]
[346710919,1735228160370,-123052.99034707,0.00017,2]
[346710920,1735228160397,-151.0,0.00017,2]
[346710921,1735228160427,-151.0,0.00017,2]
[346710922,1735228160451,-5247.00172206,0.00017061,2]
[346710923,1735228160473,-5000.0,0.00017061,2]
[346710924,1735228160498,-151.0,0.000171,2]
[346710925,1735228160615,-151.0,0.000171,2]
[346710926,1735228160638,-151.0,0.000172,2]
[346710927,1735228160663,-151.0,0.000172,2]
[346710928,1735228160685,-500.0,0.00017272,2]
[346710929,1735228160706,-500.0,0.00017272,2]
[346710930,1735228160727,-500.0,0.00017272,2]
[346710931,1735228160749,-500.0,0.00017272,2]
[346710932,1735228160772,-500.0,0.00017272,2]
[346710933,1735228160793,-500.0,0.00017272,2]
[346710934,1735228160813,-500.0,0.00017272,2]
[346710935,1735228160836,-464.30781795,0.00017272,2]
[346710936,1735228160858,-595.08641617,0.00017273,2]
[346710937,1735228160880,-500.0,0.00017273,2]
[346710938,1735228160905,-500.0,0.00017273,2]
[346710939,1735228160926,-429.87495867,0.00017273,2]
[346710940,1735228160948,-500.0,0.00017273,2]
[346710941,1735228160970,-500.0,0.00017273,2]
[346710942,1735228160990,-500.0,0.00017273,2]
[346710943,1735228161010,-501.25237563,0.00017273,2]
[346710944,1735228161030,-501.8599176,0.00017273,2]
[346710945,1735228161051,-504.38284748,0.00017273,2]
[346710946,1735228161072,-154.46699974,0.00017273,2]
[346710947,1735228161093,-500.0,0.00017273,2]
[346710948,1735228161117,-267.88,0.00017273,2]
[346710949,1735228161142,-500.0,0.00017273,2]
[346710950,1735228161165,-500.0,0.00017273,2]
[346710951,1735228161187,-247.66,0.00017273,2]
[346710952,1735228161209,-500.0,0.00017273,2]
[346710953,1735228161230,-644.76,0.00017273,2]
[346710954,1735228161251,-500.0,0.00017273,2]
[346710955,1735228161273,-500.0,0.00017273,2]
[346710956,1735228161295,-1448.57,0.00017273,2]
[346710957,1735228161317,-500.0,0.00017273,2]
[346710958,1735228161342,-1120.13,0.00017273,2]
[346710959,1735228161362,-500.0,0.00017273,2]
[346710960,1735228161383,-500.0,0.00017273,2]
[346710961,1735228161408,-500.0,0.00017273,2]
[346710962,1735228161431,-848.86,0.00017273,2]
[346710963,1735228161453,-500.0,0.00017273,2]
[346710964,1735228161475,-746.68,0.00017273,2]
[346710965,1735228161499,-1637.1,0.00017273,2]
[346710966,1735228161521,-531.45,0.00017273,2]
[346710967,1735228161543,-393.17,0.00017273,2]
[346710968,1735228161564,-500.0,0.00017273,2]
[346710969,1735228161587,-500.0,0.00017273,2]
[346710970,1735228161609,-942.32,0.00017273,2]
[346710971,1735228161631,-500.0,0.00017273,2]
[346710972,1735228161654,-500.0,0.00017273,2]
[346710973,1735228161676,-1090.31,0.00017273,2]
[346710974,1735228161697,-500.0,0.00017273,2]
[346710975,1735228161718,-1292.11,0.00017273,2]
[346710976,1735228161739,-500.0,0.00017273,2]
[346710977,1735228161760,-500.0,0.00017273,2]
[346710978,1735228161782,-1033.31,0.00017273,2]
[346710979,1735228161803,-500.0,0.00017273,2]
[346710980,1735228161828,-500.0,0.00017273,2]
[346710981,1735228161850,-500.0,0.00017273,2]
[346710982,1735228161872,-329.97,0.00017273,2]
[346710983,1735228161896,-645.83965025,0.00017273,2]
[346710984,1735228161917,-618.36,0.00017273,2]
[346710985,1735228161939,-500.0,0.00017273,2]
[346710986,1735228161960,-500.0,0.00017273,2]
[346710987,1735228161982,-108.3412619,0.00017273,2]
[346710988,1735228162287,-7651.71,0.00016999,2]
[346710989,1735228162309,-7651.71,0.00016999,2]
[346710990,1735228162425,-391.6587381,0.00017273,2]
[346710991,1735228162448,-1806.59557843,0.00017273,2]
[346710992,1735228163108,-3734.30442157,0.00017273,2]
[346710993,1735228163131,-500.0,0.00017273,2]
[346710994,1735228163157,-567.99,0.00017273,2]
[346710995,1735228163180,-500.0,0.00017273,2]
[346710996,1735228163203,-614.05,0.00017273,2]
[346710997,1735228163227,-500.0,0.00017273,2]
[346710998,1735228163252,-2040.8,0.00017273,2]
[346710999,1735228163275,-500.0,0.00017273,2]
[346711000,1735228163299,-151.0,0.000173,2]
[346711001,1735228163325,-151.0,0.000173,2]
[346711002,1735228169116,200.0,0.00016998,2]
[346711003,1735228170429,500.0,0.00016999,2]
[346711004,1735228171776,500.0,0.00016998,2]
[346711005,1735228181231,503.40731804,0.00016998,2]
[346711006,1735228184763,500.0,0.00016999,2]
[346711007,1735228185044,500.0,0.00017273,2]
[346711008,1735228185443,500.0,0.00016999,2]
[346711009,1735228187449,95.74840044,0.00016998,2]
[346711045,1735228232199,-404.25159956,0.00016998,2]
[346711049,1735228232209,-500.0,0.00016998,2]
[346711051,1735228232219,-1026.79,0.00016998,2]
[346711053,1735228232229,-500.0,0.00016998,2]
[346711055,1735228232238,-500.0,0.00016998,2]
[346711057,1735228232247,-500.0,0.00016998,2]
[346711058,1735228232257,-502.47187884,0.00016998,2]
[346711060,1735228232267,-502.03968351,0.00016998,2]
[346711061,1735228232276,-500.0,0.00016998,2]
[346711062,1735228232286,-500.0,0.00016998,2]
[346711063,1735228232296,-500.0,0.00016998,2]
[346711065,1735228232306,-500.0,0.00016998,2]
[346711067,1735228232316,-500.0,0.00016998,2]
[346711069,1735228232325,-500.0,0.00016999,2]
[346711071,1735228232335,-566.93,0.00016999,2]
[346711073,1735228232345,-502.67327573,0.00016999,2]
[346711075,1735228232356,-500.0,0.00016999,2]
[346711077,1735228232367,-501.88471905,0.00016999,2]
[346711079,1735228232377,-589.61895106,0.00016999,2]
[346711081,1735228232387,-815.98,0.00016999,2]
[346711082,1735228232396,-500.0,0.00016999,2]
[346711083,1735228232407,-695.97,0.00016999,2]
[346711084,1735228232416,-1026.79,0.00017272,2]
[346711085,1735228232427,-500.0,0.00017272,2]
[346711086,1735228232439,-500.0,0.00017272,2]
[346711087,1735228232453,-500.0,0.00017272,2]
[346711088,1735228232462,-500.0,0.00017272,2]
[346711089,1735228232471,-500.0,0.00017273,2]
[346711090,1735228232481,-566.93,0.00017273,2]
[346711091,1735228232491,-815.98,0.00017273,2]
[346711092,1735228232501,-695.97,0.00017273,2]
[346711093,1735228232511,-151.0,0.000174,2]
[346711094,1735228232521,-352.3236556,0.000174,2]
[346711095,1735228232530,-352.3236556,0.000174,2]
[346711096,1735228232540,-151.0,0.000174,2]
[346711097,1735228232549,-174.88818615,0.00017401,2]
[346711098,1735228232560,-151.0,0.000175,2]
[346711099,1735228232570,-151.0,0.000175,2]
[346711100,1735228232580,-500.0,0.00017546,2]
[346711101,1735228232589,-174.21,0.00017546,2]
[346711102,1735228232600,-6419.72779144,0.00017546,2]
[346711103,1735228232612,-1231.98220856,0.00017546,2]
[346711104,1735228232622,-1026.79,0.00017546,2]
[346711105,1735228232631,-551.3,0.00017546,2]
[346711106,1735228232641,-500.0,0.00017546,2]
[346711107,1735228232651,-500.0,0.00017547,2]
[346711108,1735228232660,-500.0,0.00017547,2]
[346711109,1735228232670,-636.20817403,0.00017547,2]
[346711110,1735228232679,-500.0,0.00017547,2]
[346711111,1735228232688,-500.0,0.00017547,2]
[346711112,1735228232699,-1448.57,0.00017547,2]
[346711113,1735228232709,-500.0,0.00017547,2]
[346711114,1735228232718,-500.0,0.00017547,2]
[346711115,1735228232728,-848.86,0.00017547,2]
[346711116,1735228232737,-746.68,0.00017547,2]
[346711117,1735228232747,-1637.1,0.00017547,2]
[346711118,1735228232757,-187.8550784,0.00017547,2]
[346711119,1735228232766,-500.0,0.00017547,2]
[346711120,1735228232776,-942.32,0.00017547,2]
[346711121,1735228232785,-500.0,0.00017547,2]
[346711122,1735228232795,-500.0,0.00017547,2]
[346711123,1735228232804,-1090.31,0.00017547,2]
[346711124,1735228232814,-500.0,0.00017547,2]
[346711125,1735228232823,-1292.11,0.00017547,2]
[346711126,1735228232833,-500.0,0.00017547,2]
[346711127,1735228232844,-1033.31,0.00017547,2]
[346711128,1735228232853,-500.0,0.00017547,2]
[346711129,1735228232863,-318.55342181,0.00017547,2]
[346711145,1735228238067,-500.0,0.00016998,2]
[346711146,1735228238077,-500.0,0.00016998,2]
[346711148,1735228238087,-559.45,0.00016999,2]
[346711150,1735228238096,-605.51199748,0.00017546,2]
[346711151,1735228238106,-520.74370457,0.00017546,2]
[346711152,1735228238115,-181.44657819,0.00017547,2]
[346711153,1735228238124,-636.57,0.00017547,2]
[346711154,1735228238134,-618.36,0.00017547,2]
[346711155,1735228238143,-500.0,0.00017547,2]
[346711156,1735228238153,-500.0,0.00017547,2]
[346711157,1735228238162,-500.0,0.00017547,2]
[346711158,1735228238171,-787.8084253,0.00017547,2]
[346711161,1735228240040,-3288.00000001,0.00017547,2]
[346711162,1735228240126,-1465.09157469,0.00017547,2]
[346711163,1735228240136,-567.99,0.00017547,2]
[346711164,1735228240145,-500.0,0.00017547,2]
[346711165,1735228240156,-2040.8,0.00017547,2]
[346711167,1735228240165,-202.94,0.00017547,2]
[346711168,1735228240174,-210.08467289,0.00017547,2]
[346711169,1735228240184,-500.0,0.00017547,2]
[346711170,1735228240193,-566.93,0.00017547,2]
[346711171,1735228240204,-815.98,0.00017547,2]
[346711172,1735228240214,-695.97,0.00017547,2]
[346711173,1735228240224,-151.0,0.000176,2]
[346711174,1735228240233,-151.0,0.000176,2]
[346711175,1735228240242,-151.0,0.000177,2]
[346711176,1735228240252,-151.0,0.000177,2]
[346711177,1735228240261,-151.0,0.000178,2]
[346711178,1735228240271,-151.0,0.000178,2]
[346711179,1735228240280,-472.38130368,0.0001782,2]
[346711180,1735228240291,-1026.79,0.0001782,2]
[346711181,1735228240300,-500.0,0.0001782,2]
[346711182,1735228240309,-500.0,0.00017821,2]
[346711183,1735228240319,-500.0,0.00017821,2]
[346711184,1735228240328,-500.0,0.00017821,2]
[346711185,1735228240337,-500.0,0.00017821,2]
[346711186,1735228240347,-1448.57,0.00017821,2]
[346711187,1735228240361,-500.0,0.00017821,2]
[346711188,1735228240369,-500.0,0.00017821,2]
[346711189,1735228240379,-848.86,0.00017821,2]
[346711190,1735228240388,-746.68,0.00017821,2]
[346711191,1735228240398,-1637.1,0.00017821,2]
[346711192,1735228240409,-500.0,0.00017821,2]
[346711193,1735228240418,-942.32,0.00017821,2]
[346711194,1735228240428,-480.66,0.00017821,2]
[346711195,1735228240438,-500.0,0.00017821,2]
[346711196,1735228240449,-1090.31,0.00017821,2]
[346711197,1735228240459,-500.0,0.00017821,2]
[346711198,1735228240469,-1292.11,0.00017821,2]
[346711199,1735228240478,-500.0,0.00017821,2]
[346711200,1735228240488,-1033.31,0.00017821,2]
[346711201,1735228240497,-500.0,0.00017821,2]
[346711202,1735228240507,-500.0,0.00017821,2]
[346711203,1735228240516,-618.36,0.00017821,2]
[346711204,1735228240526,-500.0,0.00017821,2]
[346711205,1735228240535,-500.0,0.00017821,2]
[346711206,1735228240545,-500.0,0.00017821,2]
[346711207,1735228240554,-5540.9,0.00017821,2]
[346711208,1735228240563,-567.99,0.00017821,2]
[346711209,1735228240572,-500.0,0.00017821,2]
[346711210,1735228240582,-2040.8,0.00017821,2]
[346711211,1735228240591,-566.93,0.00017821,2]
[346711212,1735228240601,-815.98,0.00017821,2]
[346711213,1735228240610,-695.97,0.00017821,2]
[346711214,1735228240619,-675.77147129,0.00017895,2]
[346711215,1735228240628,-320.70185964,0.00017896,2]
[346711216,1735228240638,-320.70185964,0.00017896,2]
[346711217,1735228240648,-320.70185964,0.00017896,2]
[346711218,1735228240658,-320.70185964,0.00017896,2]
[346711219,1735228240667,-320.70185964,0.00017896,2]
[346711220,1735228240676,-320.70185964,0.00017896,2]
[346711221,1735228240685,-320.70185964,0.00017896,2]
[346711222,1735228240695,-320.70185964,0.00017896,2]
[346711223,1735228240706,-320.70185964,0.00017896,2]
[346711224,1735228240716,-320.70185964,0.00017896,2]
[346711225,1735228240725,-320.70185964,0.00017896,2]
[346711226,1735228240736,-320.70185964,0.00017896,2]
[346711227,1735228240744,-320.70185964,0.00017896,2]
[346711228,1735228240754,-320.70185964,0.00017896,2]
[346711229,1735228240762,-320.70185964,0.00017896,2]
[346711230,1735228240772,-320.70185964,0.00017896,2]
[346711231,1735228240781,-320.70185964,0.00017896,2]
[346711232,1735228240790,-320.70185964,0.00017896,2]
[346711233,1735228240799,-320.70185964,0.00017896,2]
[346711234,1735228240808,-320.7,0.00017896,2]
[346711235,1735228240819,-151.0,0.000179,2]
[346711236,1735228240828,-151.0,0.000179,2]
[346711237,1735228240837,-481.05278946,0.000179,2]
[346711238,1735228240847,-481.05278946,0.000179,2]
[346711239,1735228240856,-481.05278946,0.000179,2]
[346711240,1735228240866,-481.05278946,0.000179,2]
[346711241,1735228240875,-481.05278946,0.000179,2]
[346711242,1735228240884,-481.05278946,0.000179,2]
[346711243,1735228240894,-481.05278946,0.000179,2]
[346711244,1735228240904,-481.05278946,0.000179,2]
[346711245,1735228240915,-481.05278946,0.000179,2]
[346711246,1735228240924,-481.05278946,0.000179,2]
[346711247,1735228240933,-481.05278946,0.000179,2]
[346711248,1735228240943,-481.05278946,0.000179,2]
[346711249,1735228240960,-481.05278946,0.000179,2]
[346711250,1735228240969,-481.05278946,0.000179,2]
[346711251,1735228240978,-481.05278946,0.000179,2]
[346711252,1735228240987,-481.05278946,0.000179,2]
[346711253,1735228240997,-481.05278946,0.000179,2]
[346711254,1735228241006,-481.05278946,0.000179,2]
[346711255,1735228241015,-481.05278946,0.000179,2]
[346711256,1735228241024,-481.05,0.000179,2]
[346711257,1735228241033,-174.88818615,0.00017902,2]
[346711258,1735228241043,-500.0,0.00017973,2]
[346711259,1735228241051,-999.999999,0.0001798,2]
[346711260,1735228241061,-7651.71,0.00017987,2]
[346711261,1735228241070,-7651.71,0.00017987,2]
[346711262,1735228241080,-7651.71,0.00017987,2]
[346711263,1735228241089,-7651.71,0.00017987,2]
[346711264,1735228241099,-7651.71,0.00017987,2]
[346711265,1735228241109,-500.0,0.00017988,2]
[346711266,1735228241118,-520.04,0.00017988,2]
[346711267,1735228241128,-500.0,0.00017988,2]
[346711268,1735228241137,-502.27542726,0.00017988,2]
[346711269,1735228241147,-500.0,0.00017988,2]
[346711270,1735228241157,-500.0,0.00017988,2]
[346711271,1735228241166,-500.0,0.00017988,2]
[346711272,1735228241175,-500.0,0.00017988,2]
[346711273,1735228241185,-500.0,0.00017988,2]
[346711274,1735228241195,-15758.26,0.00017988,2]
[346711275,1735228241206,-500.0,0.00017988,2]
[346711276,1735228241215,-7651.71,0.00017988,2]
[346711277,1735228241225,-7651.71,0.00017988,2]
[346711278,1735228241236,-7651.71,0.00017988,2]
[346711279,1735228241246,-7651.71,0.00017988,2]
[346711280,1735228241256,-7651.71,0.00017988,2]
[346711281,1735228241265,-7651.71,0.00017988,2]
[346711282,1735228241275,-7651.71,0.00017988,2]
[346711283,1735228241284,-7651.71,0.00017988,2]
[346711284,1735228241293,-7651.71,0.00017988,2]
[346711285,1735228241302,-7651.71,0.00017988,2]
[346711286,1735228241311,-7651.93029412,0.00017988,2]
[346711287,1735228241320,-638.01,0.00017988,2]
[346711288,1735228241329,-500.0,0.00017988,2]
[346711289,1735228241341,-500.0,0.00017989,2]
[346711290,1735228241350,-500.0,0.00017989,2]
[346711291,1735228241363,-500.0,0.00017989,2]
[346711292,1735228241373,-500.0,0.00017989,2]
[346711293,1735228241383,-500.0,0.00017989,2]
[346711294,1735228241392,-500.0,0.00017989,2]
[346711295,1735228241402,-500.0,0.00017989,2]
[346711296,1735228241412,-500.0,0.00017989,2]
[346711297,1735228241422,-501.55079268,0.00017989,2]
[346711298,1735228241432,-502.63027622,0.00017989,2]
[346711299,1735228241442,-195.115628,0.00017989,2]
[346711300,1735228241453,-500.0,0.00017989,2]
[346711301,1735228241463,-500.0,0.00017989,2]
[346711302,1735228241472,-500.0,0.00017989,2]
[346711303,1735228241482,-500.0,0.00017989,2]
[346711304,1735228241492,-500.0,0.00017989,2]
[346711305,1735228241502,-500.0,0.00017989,2]
[346711306,1735228241600,-379.94062988,0.00017989,2]
[346711307,1735228241611,-500.0,0.00017989,2]
[346711308,1735228241620,-506.64114542,0.00017989,2]
[346711309,1735228241629,-500.0,0.00017989,2]
[346711310,1735228241640,-500.0,0.00017989,2]
[346711311,1735228241650,-500.0,0.00017989,2]
[346711312,1735228241659,-578.30690411,0.00017989,2]
[346711313,1735228241668,-500.0,0.00017989,2]
[346711314,1735228241677,-502.63554415,0.00017989,2]
[346711315,1735228241686,-500.0,0.00017989,2]
[346711316,1735228241696,-500.0,0.00017989,2]
[346711317,1735228241706,-505.0681359,0.00017989,2]
[346711318,1735228241715,-500.0,0.00017989,2]
[346711319,1735228241725,-500.0,0.00017989,2]
[346711320,1735228241734,-500.0,0.00017989,2]
[346711321,1735228241744,-502.98287859,0.00017989,2]
[346711322,1735228241754,-500.0,0.00017989,2]
[346711323,1735228241764,-505.45843565,0.00017989,2]
[346711324,1735228241774,-500.0,0.00017989,2]
[346711325,1735228241784,-500.0,0.00017989,2]
[346711326,1735228241794,-500.0,0.00017989,2]
[346711327,1735228241804,-501.82287092,0.00017989,2]
[346711328,1735228241813,-500.0,0.00017989,2]
[346711329,1735228241823,-500.26226255,0.00017989,2]
[346711330,1735228241832,-501.66339903,0.00017989,2]
[346711331,1735228241842,-500.0,0.00017989,2]
[346711332,1735228241853,-500.0,0.00017989,2]
[346711333,1735228241863,-502.62169519,0.00017989,2]
[346711334,1735228241873,-500.0,0.00017989,2]
[346711335,1735228241883,-500.0,0.00017989,2]
[346711336,1735228241893,-500.0,0.00017989,2]
[346711337,1735228241902,-500.0,0.00017989,2]
[346711338,1735228241912,-500.0,0.00017989,2]
[346711339,1735228241922,-500.0,0.00017989,2]
[346711340,1735228241932,-500.0,0.00017989,2]
[346711341,1735228241941,-500.0,0.00017989,2]
[346711342,1735228241951,-500.0,0.00017989,2]
[346711343,1735228241961,-500.0,0.00017989,2]
[346711344,1735228241969,-500.0,0.00017989,2]
[346711345,1735228241980,-500.0,0.00017989,2]
[346711346,1735228241989,-500.0,0.00017989,2]
[346711347,1735228241999,-502.56102965,0.00017989,2]
[346711348,1735228242009,-500.0,0.00017989,2]
[346711349,1735228242019,-534.59275332,0.00017989,2]
[346711350,1735228242029,-500.0,0.00017989,2]
[346711351,1735228242039,-500.0,0.00017989,2]
[346711352,1735228242049,-500.0,0.00017989,2]
[346711353,1735228242059,-506.64147036,0.00017989,2]
[346711354,1735228242069,-500.0,0.00017989,2]
[346711355,1735228242079,-169.3,0.00017989,2]
[346711356,1735228242089,-500.0,0.00017989,2]
[346711357,1735228242098,-500.0,0.00017989,2]
[346711358,1735228242109,-442.25630552,0.00017989,2]
[346711359,1735228242119,-500.0,0.00017989,2]
[346711360,1735228242129,-500.0,0.00017989,2]
[346711361,1735228242139,-500.0,0.00017989,2]
[346711362,1735228242149,-500.0,0.00017989,2]
[346711363,1735228242158,-500.0,0.00017989,2]